[Event "*** Titled Tuesday Blitz"]
[Site "Chess.com"]
[Date "2019.07.02"]
[Round "4"]
[White "LucaBrasi1968"]
[Black "Andrii_Prydun"]
[Result "1-0"]
[WhiteElo "2419"]
[BlackElo "2286"]
[TimeControl "180+2"]
[EndTime "13:55:13 PDT"]
[Termination "LucaBrasi1968 won by resignation"]

1. d4 {[%clk 0:03:00.7]} 1... d5 {[%clk 0:02:59.9]} 2. c4 {[%clk 0:02:58.2]}
2... c6 {[%clk 0:03:00.7]} 3. cxd5 {[%clk 0:02:58.1]} 3... cxd5 {[%clk
0:03:00.8]} 4. Bf4 {[%clk 0:02:58.8]} 4... Nf6 {[%clk 0:02:59.5]} 5. Nc3 {[%clk
0:02:58.8]} 5... e6 {[%clk 0:02:59.8]} 6. Rc1 {[%clk 0:02:58.9]} 6... a6 {[%clk
0:02:58.9]} 7. e3 {[%clk 0:02:59.7]} 7... Bd6 {[%clk 0:02:58.6]} 8. Bg3 {[%clk
0:02:59.5]} 8... O-O {[%clk 0:02:58.8]} 9. Nf3 {[%clk 0:03:00.6]} 9... Nc6
{[%clk 0:02:58.2]} 10. Bd3 {[%clk 0:03:01.6]} 10... Re8 {[%clk 0:02:45.9]} 11.
a3 {[%clk 0:02:57.8]} 11... e5 {[%clk 0:02:37.8]} 12. dxe5 {[%clk 0:02:57.6]}
12... Nxe5 {[%clk 0:02:38.4]} 13. Nxe5 {[%clk 0:02:57.8]} 13... Bxe5 {[%clk
0:02:39.2]} 14. Bxe5 {[%clk 0:02:58.4]} 14... Rxe5 {[%clk 0:02:39.9]} 15. Ne2
{[%clk 0:02:55.2]} 15... Bg4 {[%clk 0:02:39.1]} 16. O-O {[%clk 0:02:48]} 16...
Qd6 {[%clk 0:02:31]} 17. Qc2 {[%clk 0:02:31.7]} 17... Bxe2 {[%clk 0:02:19.9]}
18. Bxe2 {[%clk 0:02:30.2]} 18... d4 {[%clk 0:02:20]} 19. exd4 {[%clk
0:02:28.4]} 19... Qxd4 {[%clk 0:02:20]} 20. Bf3 {[%clk 0:02:29.4]} 20... Rb5
{[%clk 0:01:37.7]} 21. b4 {[%clk 0:02:20.3]} 21... Re8 {[%clk 0:01:34.5]} 22.
Rfd1 {[%clk 0:02:17.4]} 22... Qf4 {[%clk 0:01:33.4]} 23. Qc7 {[%clk 0:02:08.3]}
23... Rbe5 {[%clk 0:01:27.6]} 24. Qc3 {[%clk 0:01:28.5]} 24... R5e7 {[%clk
0:00:56.1]} 25. h3 {[%clk 0:01:22.8]} 25... h6 {[%clk 0:00:53.7]} 26. Re1 {[%clk
0:01:03.5]} 26... Rxe1+ {[%clk 0:00:50.5]} 27. Rxe1 {[%clk 0:01:03.9]} 27...
Rxe1+ {[%clk 0:00:51.2]} 28. Qxe1 {[%clk 0:01:04.5]} 28... Qc7 {[%clk
0:00:48.3]} 29. Qe3 {[%clk 0:01:03.4]} 29... b6 {[%clk 0:00:41.6]} 30. Qd4
{[%clk 0:00:53.6]} 30... a5 {[%clk 0:00:41.6]} 31. bxa5 {[%clk 0:00:52.6]} 31...
bxa5 {[%clk 0:00:41.7]} 32. a4 {[%clk 0:00:52.5]} 32... Nd7 {[%clk 0:00:34.9]}
33. Be2 {[%clk 0:00:43.9]} 33... Nc5 {[%clk 0:00:29.4]} 34. Bb5 {[%clk
0:00:44.3]} 34... Ne6 {[%clk 0:00:20.4]} 35. Qe3 {[%clk 0:00:38.9]} 35... Qd6
{[%clk 0:00:17.3]} 36. Qc3 {[%clk 0:00:30.1]} 36... Qd1+ {[%clk 0:00:14.1]} 37.
Kh2 {[%clk 0:00:30.6]} 37... Qd6+ {[%clk 0:00:13.7]} 38. Kg1 {[%clk 0:00:31.1]}
38... Qd1+ {[%clk 0:00:11.4]} 39. Kh2 {[%clk 0:00:31.8]} 39... Qd8 {[%clk
0:00:11.9]} 40. Qe5 {[%clk 0:00:25]} 40... Qb6 {[%clk 0:00:11.1]} 41. Kg1 {[%clk
0:00:23.4]} 41... Qc5 {[%clk 0:00:07.5]} 42. Qe2 {[%clk 0:00:08.8]} 42... Qd4
{[%clk 0:00:06.4]} 43. Qf3 {[%clk 0:00:06.7]} 43... Qa1+ {[%clk 0:00:05.3]} 44.
Kh2 {[%clk 0:00:07.4]} 44... Qd4 {[%clk 0:00:03.5]} 45. Qa8+ {[%clk 0:00:07.3]}
45... Kh7 {[%clk 0:00:04.4]} 46. Qf3 {[%clk 0:00:09]} 46... Qb2 {[%clk
0:00:04.7]} 47. Qxf7 {[%clk 0:00:09.4]} 47... Ng5 {[%clk 0:00:04.2]} 48. Qf5+
{[%clk 0:00:10]} 48... Kg8 {[%clk 0:00:05.1]} 49. Bc4+ {[%clk 0:00:10.7]} 49...
Kh8 {[%clk 0:00:05.4]} 50. Qf8+ {[%clk 0:00:11.7]} 50... Kh7 {[%clk 0:00:06.6]}
51. Bd3+ {[%clk 0:00:13.3]} 51... g6 {[%clk 0:00:07.4]} 52. Qe7+ {[%clk
0:00:14.4]} 52... Qg7 {[%clk 0:00:08]} 53. Qxg7+ {[%clk 0:00:13.5]} 53... Kxg7
{[%clk 0:00:09.9]} 54. Kg3 {[%clk 0:00:15]} 54... Kf6 {[%clk 0:00:11]} 55. Kf4
{[%clk 0:00:16.3]} 55... Ne6+ {[%clk 0:00:11.9]} 56. Ke3 {[%clk 0:00:15.7]}
56... Nc5 {[%clk 0:00:12.9]} 57. Bb5 {[%clk 0:00:16.8]} 57... Ke5 {[%clk
0:00:13.7]} 58. f4+ {[%clk 0:00:18]} 58... Kd5 {[%clk 0:00:14.8]} 59. g4 {[%clk
0:00:19.2]} 59... g5 {[%clk 0:00:14.9]} 60. f5 {[%clk 0:00:19.4]} 60... Ke5
{[%clk 0:00:16.1]} 61. Bc6 {[%clk 0:00:19]} 61... Na6 {[%clk 0:00:16.6]} 62. Bb5
{[%clk 0:00:18.5]} 62... Nc5 {[%clk 0:00:17.7]} 63. Be8 {[%clk 0:00:15.1]} 63...
Nb3 {[%clk 0:00:17]} 64. Kd3 {[%clk 0:00:15.3]} 64... Nd4 {[%clk 0:00:17.5]} 65.
f6 {[%clk 0:00:15]} 65... Ne6 {[%clk 0:00:17.2]} 66. f7 {[%clk 0:00:16]} 66...
Kf6 {[%clk 0:00:17.1]} 67. Kc4 {[%clk 0:00:16.7]} 67... Ke7 {[%clk 0:00:18.5]}
68. Kb5 {[%clk 0:00:17.8]} 68... Nf4 {[%clk 0:00:18.3]} 69. Kxa5 {[%clk
0:00:19.1]} 69... Nxh3 {[%clk 0:00:19.2]} 70. Kb6 {[%clk 0:00:20.5]} 70... Nf4
{[%clk 0:00:19.2]} 71. a5 {[%clk 0:00:21.9]} 71... Nd5+ {[%clk 0:00:16.2]} 72.
Kc6 {[%clk 0:00:20.2]} 72... Nb4+ {[%clk 0:00:16.9]} 73. Kc5 {[%clk 0:00:20.9]}
73... Na6+ {[%clk 0:00:16.4]} 74. Kb6 {[%clk 0:00:22.1]} 74... Nb8 {[%clk
0:00:15.3]} 75. Kb7 {[%clk 0:00:22.6]} 75... Na6 {[%clk 0:00:09.8]} 76. Kxa6
{[%clk 0:00:22.8]} 1-0

[Event "*** Titled Tuesday Blitz"]
[Site "Chess.com"]
[Date "2019.07.02"]
[Round "4"]
[White "RitvarsReimanis"]
[Black "AryanTari"]
[Result "1/2-1/2"]
[WhiteElo "2583"]
[BlackElo "2814"]
[TimeControl "180+2"]
[EndTime "13:55:50 PDT"]
[Termination "Game drawn by agreement"]

1. d4 {[%clk 0:02:54.4]} 1... Nf6 {[%clk 0:03:00.8]} 2. c4 {[%clk 0:02:53.9]}
2... g6 {[%clk 0:03:01.9]} 3. Nc3 {[%clk 0:02:54.8]} 3... d5 {[%clk 0:03:03.3]}
4. e3 {[%clk 0:02:55.9]} 4... Bg7 {[%clk 0:03:04.4]} 5. Qb3 {[%clk 0:02:57.3]}
5... e6 {[%clk 0:03:02.7]} 6. Nf3 {[%clk 0:02:56.5]} 6... O-O {[%clk 0:03:03.2]}
7. cxd5 {[%clk 0:02:56.8]} 7... exd5 {[%clk 0:03:04]} 8. Be2 {[%clk 0:02:57.8]}
8... c5 {[%clk 0:03:02.9]} 9. O-O {[%clk 0:02:59.2]} 9... c4 {[%clk 0:02:57.6]}
10. Qd1 {[%clk 0:02:58.9]} 10... Nc6 {[%clk 0:02:49.6]} 11. Ne5 {[%clk
0:03:00.1]} 11... Be6 {[%clk 0:02:48.3]} 12. f4 {[%clk 0:03:01]} 12... Nxe5
{[%clk 0:02:38]} 13. fxe5 {[%clk 0:03:01.9]} 13... Nd7 {[%clk 0:02:36.7]} 14. b3
{[%clk 0:03:03.1]} 14... cxb3 {[%clk 0:02:19.3]} 15. axb3 {[%clk 0:03:00.3]}
15... a6 {[%clk 0:02:17.5]} 16. Ba3 {[%clk 0:02:58.3]} 16... Re8 {[%clk
0:02:17.1]} 17. Bf3 {[%clk 0:02:57.5]} 17... Nb6 {[%clk 0:02:06.1]} 18. Bc5
{[%clk 0:02:58.4]} 18... Rc8 {[%clk 0:01:57.7]} 19. Bxb6 {[%clk 0:02:58.4]}
19... Qxb6 {[%clk 0:01:59.6]} 20. Nxd5 {[%clk 0:02:59.6]} 20... Qb5 {[%clk
0:01:57.3]} 21. e4 {[%clk 0:02:10]} 21... Kh8 {[%clk 0:01:54.1]} 22. Rb1 {[%clk
0:01:53.2]} 22... a5 {[%clk 0:01:49.3]} 23. Qd2 {[%clk 0:01:52]} 23... Red8
{[%clk 0:01:29.6]} 24. Rfd1 {[%clk 0:01:35]} 24... b6 {[%clk 0:01:08.9]} 25. Be2
{[%clk 0:01:33]} 25... Qc6 {[%clk 0:01:07.5]} 26. Ne7 {[%clk 0:01:31.2]} 26...
Qxe4 {[%clk 0:01:08.8]} 27. Nxc8 {[%clk 0:01:21.4]} 27... Bxc8 {[%clk
0:01:10.7]} 28. Bf3 {[%clk 0:01:19.1]} 28... Qh4 {[%clk 0:01:11.8]} 29. Qf2
{[%clk 0:01:12.8]} 29... Qe7 {[%clk 0:01:09.7]} 30. Rbc1 {[%clk 0:01:08.1]}
30... Bf5 {[%clk 0:01:07.2]} 31. g4 {[%clk 0:00:49.2]} 31... Bd7 {[%clk
0:01:01.5]} 32. h3 {[%clk 0:00:45.3]} 32... b5 {[%clk 0:00:59]} 33. Bg2 {[%clk
0:00:45.2]} 33... a4 {[%clk 0:00:57.5]} 34. bxa4 {[%clk 0:00:44.1]} 34... bxa4
{[%clk 0:00:59.4]} 35. Rc7 {[%clk 0:00:41.6]} 35... Qe8 {[%clk 0:00:55]} 36. Ra7
{[%clk 0:00:39.1]} 36... Be6 {[%clk 0:00:52.7]} 37. Rc1 {[%clk 0:00:34.5]} 37...
Bb3 {[%clk 0:00:47.2]} 38. Kh1 {[%clk 0:00:29.8]} 38... h6 {[%clk 0:00:45]} 39.
d5 {[%clk 0:00:30.8]} 39... Qxe5 {[%clk 0:00:32.9]} 40. Qxf7 {[%clk 0:00:28.8]}
40... Rf8 {[%clk 0:00:28.7]} 41. Qxg6 {[%clk 0:00:28.8]} 41... Bxd5 {[%clk
0:00:30.2]} 42. Qxg7+ {[%clk 0:00:18.5]} 42... Qxg7 {[%clk 0:00:30.3]} 43. Rxg7
{[%clk 0:00:20.4]} 43... Bxg2+ {[%clk 0:00:30.4]} 44. Kxg2 {[%clk 0:00:22.3]}
44... Kxg7 {[%clk 0:00:32]} 45. Ra1 {[%clk 0:00:19.3]} 45... Ra8 {[%clk
0:00:33]} 46. Kf3 {[%clk 0:00:20]} 46... a3 {[%clk 0:00:33.5]} 47. h4 {[%clk
0:00:18.6]} 47... Kf6 {[%clk 0:00:34.7]} 48. g5+ {[%clk 0:00:19.5]} 48... hxg5
{[%clk 0:00:28]} 49. hxg5+ {[%clk 0:00:21.4]} 49... Kxg5 {[%clk 0:00:29.3]} 50.
Ke4 {[%clk 0:00:22.9]} 50... Kg4 {[%clk 0:00:20.4]} 51. Rg1+ {[%clk 0:00:20.4]}
51... Kh3 {[%clk 0:00:20]} 52. Kd3 {[%clk 0:00:20.1]} 52... Rb8 {[%clk
0:00:06.5]} 53. Ra1 {[%clk 0:00:19]} 53... Rb3+ {[%clk 0:00:06.6]} 54. Kc4
{[%clk 0:00:20.1]} 54... Rg3 {[%clk 0:00:04.7]} 55. Kb4 {[%clk 0:00:21.5]} 55...
Kg4 {[%clk 0:00:05.9]} 56. Rxa3 {[%clk 0:00:22.6]} 56... Rg1 {[%clk 0:00:07.4]}
57. Rc3 {[%clk 0:00:22.7]} 57... Re1 {[%clk 0:00:08.1]} 58. Rc4+ {[%clk
0:00:24]} 58... Kf3 {[%clk 0:00:09.3]} 59. Rc8 {[%clk 0:00:25.1]} 59... Re4+
{[%clk 0:00:09.5]} 60. Rc4 {[%clk 0:00:24.5]} 60... Re7 {[%clk 0:00:11]} 61.
Rc3+ {[%clk 0:00:25.2]} 61... Ke4 {[%clk 0:00:12.2]} 62. Rc1 {[%clk 0:00:25.5]}
62... Rb7+ {[%clk 0:00:12.4]} 63. Kc3 {[%clk 0:00:26.3]} 63... Rc7+ {[%clk
0:00:10.9]} 64. Kd2 {[%clk 0:00:26.5]} 64... Ra7 {[%clk 0:00:12.8]} 65. Rc4+
{[%clk 0:00:26.8]} 65... Kf3 {[%clk 0:00:14.2]} 66. Rc3+ {[%clk 0:00:25.4]}
66... Kf2 {[%clk 0:00:14.6]} 67. Rb3 {[%clk 0:00:26.4]} 67... Rd7+ {[%clk
0:00:13]} 68. Rd3 {[%clk 0:00:27]} 68... Ra7 {[%clk 0:00:14.9]} 69. Rb3 {[%clk
0:00:28.2]} 69... Re7 {[%clk 0:00:15.8]} 70. Rh3 {[%clk 0:00:28]} 70... Re2+
{[%clk 0:00:16]} 71. Kd3 {[%clk 0:00:28.9]} 71... Re8 {[%clk 0:00:17.9]} 72. Kd4
{[%clk 0:00:27.8]} 72... Rd8+ {[%clk 0:00:18.2]} 73. Ke5 {[%clk 0:00:28.5]}
73... Kg2 {[%clk 0:00:19.9]} 74. Rb3 {[%clk 0:00:29.2]} 74... Re8+ {[%clk
0:00:20.7]} 75. Kf5 {[%clk 0:00:30.4]} 75... Re1 {[%clk 0:00:22.6]} 76. Kf4
{[%clk 0:00:30.5]} 76... Rf1+ {[%clk 0:00:23.6]} 77. Kg4 {[%clk 0:00:31.6]}
77... Rf2 {[%clk 0:00:24.7]} 78. Rg3+ {[%clk 0:00:31.5]} 78... Kh1 {[%clk
0:00:25.5]} 79. Rb3 {[%clk 0:00:33.4]} 79... Rg2+ {[%clk 0:00:25.6]} 80. Kh3
{[%clk 0:00:32.7]} 80... Rh2+ {[%clk 0:00:26.7]} 81. Kg3 {[%clk 0:00:34.1]}
81... Rg2+ {[%clk 0:00:28.1]} 82. Kh3 {[%clk 0:00:35.6]} 82... Rh2+ {[%clk
0:00:29.5]} 83. Kg3 {[%clk 0:00:37.1]} 83... Rg2+ {[%clk 0:00:30.3]} 84. Kf3
{[%clk 0:00:37.9]} 84... Rg8 {[%clk 0:00:29.7]} 85. Rb4 {[%clk 0:00:36]} 85...
Rh8 {[%clk 0:00:26.1]} 86. Rb1+ {[%clk 0:00:36.5]} 86... Kh2 {[%clk 0:00:27.1]}
87. Rc1 {[%clk 0:00:37.2]} 87... Rf8+ {[%clk 0:00:27.2]} 88. Ke4 {[%clk
0:00:38.4]} 88... Kg3 {[%clk 0:00:27.3]} 89. Rc7 {[%clk 0:00:36.3]} 89... Rf4+
{[%clk 0:00:27.4]} 90. Ke5 {[%clk 0:00:37.2]} 90... Rf1 {[%clk 0:00:29.3]}
1/2-1/2

[Event "*** Titled Tuesday Blitz"]
[Site "Chess.com"]
[Date "2019.07.02"]
[Round "4"]
[White "wadsy27"]
[Black "PaulfromSPb"]
[Result "0-1"]
[WhiteElo "2439"]
[BlackElo "2625"]
[TimeControl "180+2"]
[EndTime "13:56:20 PDT"]
[Termination "PaulfromSPb won by resignation"]

1. c4 {[%clk 0:03:00.4]} 1... e5 {[%clk 0:02:53.3]} 2. g3 {[%clk 0:03:01.2]}
2... Nc6 {[%clk 0:02:50.7]} 3. Nc3 {[%clk 0:03:01.2]} 3... Nf6 {[%clk
0:02:49.9]} 4. Bg2 {[%clk 0:03:01.5]} 4... g6 {[%clk 0:02:47.7]} 5. Nf3 {[%clk
0:02:53.1]} 5... Bg7 {[%clk 0:02:48.7]} 6. O-O {[%clk 0:02:52.3]} 6... O-O
{[%clk 0:02:48.1]} 7. d3 {[%clk 0:02:52.7]} 7... d6 {[%clk 0:02:44.9]} 8. Rb1
{[%clk 0:02:52.3]} 8... a5 {[%clk 0:02:45]} 9. a3 {[%clk 0:02:46.6]} 9... Re8
{[%clk 0:02:45.9]} 10. Ne1 {[%clk 0:02:41.6]} 10... Bg4 {[%clk 0:02:43.9]} 11.
h3 {[%clk 0:02:37]} 11... Be6 {[%clk 0:02:44.1]} 12. b4 {[%clk 0:02:31.2]} 12...
axb4 {[%clk 0:02:44.7]} 13. axb4 {[%clk 0:02:31]} 13... Qd7 {[%clk 0:02:46.1]}
14. Kh2 {[%clk 0:02:31.5]} 14... d5 {[%clk 0:02:46.1]} 15. b5 {[%clk 0:02:27.4]}
15... Nd4 {[%clk 0:02:46.8]} 16. e3 {[%clk 0:02:21.1]} 16... dxc4 {[%clk
0:02:41.6]} 17. exd4 {[%clk 0:02:19.1]} 17... exd4 {[%clk 0:02:42.3]} 18. Ne4
{[%clk 0:02:19]} 18... Nxe4 {[%clk 0:02:39.8]} 19. Bxe4 {[%clk 0:02:19.3]} 19...
Bxh3 {[%clk 0:02:39.9]} 20. Ng2 {[%clk 0:02:14.6]} 20... c3 {[%clk 0:02:30.7]}
21. Bxb7 {[%clk 0:02:00.9]} 21... Ra2 {[%clk 0:02:27.7]} 22. Qf3 {[%clk
0:01:55.1]} 22... Bg4 {[%clk 0:02:25]} 23. Qd5 {[%clk 0:01:39.7]} 23... Ree2
{[%clk 0:02:24.8]} 24. Qxd7 {[%clk 0:01:36.4]} 24... Bxd7 {[%clk 0:02:25.1]} 25.
Bd5 {[%clk 0:01:33.9]} 25... Rxf2 {[%clk 0:02:24.9]} 26. Rxf2 {[%clk 0:01:26.9]}
26... Rxf2 {[%clk 0:02:25]} 27. b6 {[%clk 0:01:28.3]} 27... cxb6 {[%clk
0:02:20.3]} 28. Rxb6 {[%clk 0:01:28.6]} 28... Be5 {[%clk 0:02:17.2]} 29. Bh6
{[%clk 0:01:27.2]} 29... Rb2 {[%clk 0:02:08.7]} 30. Ra6 {[%clk 0:01:21.4]} 30...
Rb8 {[%clk 0:02:05.7]} 31. Ra7 {[%clk 0:01:21.6]} 31... Be8 {[%clk 0:02:06.3]}
32. Nh4 {[%clk 0:01:20]} 32... Rc8 {[%clk 0:02:04.6]} 33. Nf3 {[%clk 0:01:19.9]}
33... Bg7 {[%clk 0:02:03.4]} 34. Bc1 {[%clk 0:01:19.6]} 34... Bf6 {[%clk
0:01:51.5]} 35. Ng5 {[%clk 0:01:05]} 35... Bxg5 {[%clk 0:01:49.8]} 36. Bxg5
{[%clk 0:01:06.4]} 36... Rc5 {[%clk 0:01:50.6]} 37. Ra8 {[%clk 0:01:01.1]} 37...
Rxd5 {[%clk 0:01:44.5]} 38. Rxe8+ {[%clk 0:00:59.7]} 38... Kg7 {[%clk
0:01:45.6]} 39. Bc1 {[%clk 0:00:58.5]} 39... Kf6 {[%clk 0:01:40.3]} 40. Rc8
{[%clk 0:00:58.3]} 40... Re5 {[%clk 0:01:36.3]} 41. Rc4 {[%clk 0:00:57]} 41...
Re2+ {[%clk 0:01:28.9]} 42. Kh3 {[%clk 0:00:55.1]} 42... Ke5 {[%clk 0:01:29.6]}
43. Ba3 {[%clk 0:00:52.8]} 43... Re3 {[%clk 0:01:26.2]} 44. Rc7 {[%clk
0:00:43.8]} 44... Rxd3 {[%clk 0:01:20.4]} 45. Rxf7 {[%clk 0:00:43.8]} 45... c2
{[%clk 0:01:21.5]} 46. Bc1 {[%clk 0:00:44.2]} 46... Rd1 {[%clk 0:01:22.1]} 47.
Bf4+ {[%clk 0:00:44.8]} 47... Ke6 {[%clk 0:01:20.6]} 48. Rc7 {[%clk 0:00:45.6]}
48... d3 {[%clk 0:01:21.2]} 49. Kg4 {[%clk 0:00:45.7]} 49... Rf1 {[%clk
0:01:20.4]} 50. Bg5 {[%clk 0:00:33.9]} 50... h5+ {[%clk 0:01:19.5]} 51. Kh3
{[%clk 0:00:30.7]} 51... Kf5 {[%clk 0:01:19.5]} 52. Bd2 {[%clk 0:00:17.7]} 52...
Rd1 {[%clk 0:01:19.3]} 53. Bf4 {[%clk 0:00:13.4]} 53... Rf1 {[%clk 0:01:05.1]}
54. Bd2 {[%clk 0:00:12.2]} 54... Rh1+ {[%clk 0:00:57.1]} 55. Kg2 {[%clk
0:00:12.3]} 55... Rd1 {[%clk 0:00:59]} 56. Be3 {[%clk 0:00:12.4]} 56... Ke4
{[%clk 0:00:59.5]} 57. Re7+ {[%clk 0:00:13]} 57... Kd5 {[%clk 0:01:00.3]} 58.
Rc7 {[%clk 0:00:13.9]} 58... d2 {[%clk 0:00:53.6]} 59. Rxc2 {[%clk 0:00:13.6]}
59... Rg1+ {[%clk 0:00:54.1]} 60. Bxg1 {[%clk 0:00:14.3]} 60... d1=Q {[%clk
0:00:54.3]} 61. Rf2 {[%clk 0:00:12.9]} 61... Ke6 {[%clk 0:00:35.5]} 62. Rf4
{[%clk 0:00:10.6]} 62... g5 {[%clk 0:00:35.5]} 63. Rf2 {[%clk 0:00:10.8]} 63...
Ke5 {[%clk 0:00:33.6]} 64. Rf1 {[%clk 0:00:11.2]} 64... Qe2+ {[%clk 0:00:33.2]}
65. Rf2 {[%clk 0:00:10.5]} 65... Qg4 {[%clk 0:00:33.6]} 66. Rf1 {[%clk
0:00:09.3]} 66... h4 {[%clk 0:00:34]} 67. Bh2 {[%clk 0:00:09.4]} 67... Qe2+
{[%clk 0:00:31.2]} 68. Rf2 {[%clk 0:00:03.8]} 68... h3+ {[%clk 0:00:30.8]} 69.
Kg1 {[%clk 0:00:04.9]} 69... Qe1+ {[%clk 0:00:27.5]} 70. Rf1 {[%clk 0:00:05.8]}
70... Qe3+ {[%clk 0:00:29]} 71. Rf2 {[%clk 0:00:06.8]} 71... g4 {[%clk
0:00:27.8]} 72. Kf1 {[%clk 0:00:05.4]} 72... Qc1+ {[%clk 0:00:22.4]} 73. Ke2
{[%clk 0:00:06.2]} 73... Qh1 {[%clk 0:00:23.8]} 74. Kd2 {[%clk 0:00:05.6]} 74...
Ke4 {[%clk 0:00:22.9]} 75. Re2+ {[%clk 0:00:06]} 75... Kd4 {[%clk 0:00:17.9]}
76. Rf2 {[%clk 0:00:06.6]} 76... Kd5 {[%clk 0:00:18.5]} 77. Re2 {[%clk
0:00:07.2]} 77... Qf3 {[%clk 0:00:18.3]} 78. Re3 {[%clk 0:00:07.7]} 78... Qf2+
{[%clk 0:00:16.5]} 79. Re2 {[%clk 0:00:09.2]} 79... Qf1 {[%clk 0:00:17.5]} 80.
Ke3 {[%clk 0:00:09.8]} 80... Kc4 {[%clk 0:00:16.6]} 81. Rf2 {[%clk 0:00:09.7]}
81... Qe1+ {[%clk 0:00:17.3]} 82. Re2 {[%clk 0:00:10.8]} 82... Qc3+ {[%clk
0:00:17.6]} 83. Kf4 {[%clk 0:00:11.4]} 83... Qf3+ {[%clk 0:00:18.5]} 0-1